fUSD/lending_fUSD_20250503
["ID","MTS","AMOUNT","RATE_DAILY","PERIOD"]
[359748534,1746297042808,-450.0,0.00019606,2]
[359748536,1746297042819,-488.08,0.00019606,2]
[359748538,1746297042829,-102481.48,0.00019606,2]
[359748540,1746297042840,-756.24,0.00019606,2]
[359748541,1746297042851,-610.54,0.00019606,2]
[359748542,1746297042861,-450.0,0.00019606,2]
[359748543,1746297042872,-559.77,0.00019606,2]
[359748544,1746297042882,-528.85,0.00019606,2]
[359748546,1746297042893,-450.0,0.00019606,2]
[359748548,1746297042903,-456.82,0.00019606,2]
[359748550,1746297042913,-565.99,0.00019606,2]
[359748555,1746297042926,-450.0,0.00019606,2]
[359748558,1746297042936,-1347.78,0.00019606,2]
[359748560,1746297042947,-450.0,0.00019606,2]
[359748561,1746297042958,-450.0,0.00019606,2]
[359748562,1746297042968,-542.9930432,0.00019606,2]
[359748563,1746297042979,-450.0,0.00019606,2]
[359748564,1746297042990,-450.0,0.00019606,2]
[359748565,1746297043000,-494.56,0.00019606,2]
[359748566,1746297043010,-4226.8,0.00019606,2]
[359748567,1746297043020,-661.48,0.00019606,2]
[359748568,1746297043031,-450.0,0.00019606,2]
[359748569,1746297043041,-450.0,0.00019606,2]
[359748570,1746297043052,-450.0,0.00019606,2]
[359748571,1746297043062,-450.0,0.00019606,2]
[359748572,1746297043072,-512.25578654,0.00019606,2]
[359748573,1746297043082,-880.71,0.00019606,2]
[359748574,1746297043092,-500.0,0.00019606,2]
[359748575,1746297043102,-450.0,0.00019606,2]
[359748576,1746297043113,-577.32,0.00019606,2]
[359748577,1746297043123,-450.0,0.00019606,2]
[359748578,1746297043133,-450.0,0.00019607,2]
[359748579,1746297043143,-450.0,0.00019607,2]
[359748580,1746297043154,-450.0,0.00019607,2]
[359748581,1746297043164,-450.0,0.00019607,2]
[359748582,1746297043175,-450.0,0.00019607,2]
[359748583,1746297043185,-574.2,0.00019607,2]
[359748584,1746297043195,-514.05,0.00019607,2]
[359748585,1746297043206,-2877.55,0.00019607,2]
[359748586,1746297043217,-450.0,0.00019607,2]
[359748587,1746297043227,-450.0,0.00019607,2]
[359748588,1746297043237,-450.0,0.00019607,2]
[359748589,1746297043248,-450.0,0.00019607,2]
[359748590,1746297043258,-450.0,0.00019607,2]
[359748591,1746297043269,-450.0,0.00019607,2]
[359748592,1746297043279,-602.16,0.00019607,2]
[359748593,1746297043290,-450.0,0.00019607,2]
[359748595,1746297043300,-450.0,0.00019607,2]
[359748597,1746297043311,-450.0,0.00019607,2]
[359748599,1746297043322,-450.0,0.00019607,2]
[359748601,1746297043333,-450.0,0.00019607,2]
[359748603,1746297043343,-419.69688529,0.00019607,2]
[359748605,1746297043353,-450.0,0.00019607,2]
[359748607,1746297043363,-450.0,0.00019607,2]
[359748609,1746297043373,-450.0,0.00019607,2]
[359748611,1746297043384,-450.0,0.00019607,2]
[359748613,1746297043394,-450.0,0.00019607,2]
[359748615,1746297043410,-450.0,0.00019607,2]
[359748617,1746297043420,-450.0,0.00019607,2]
[359748619,1746297043431,-450.0,0.00019607,2]
[359748621,1746297043441,-534.84,0.00019607,2]
[359748623,1746297043453,-450.0,0.00019607,2]
[359748625,1746297043463,-450.0,0.00019607,2]
[359748627,1746297043473,-450.0,0.00019607,2]
[359748629,1746297043484,-450.0,0.00019607,2]
[359748631,1746297043495,-450.0,0.00019607,2]
[359748633,1746297043505,-393.19971781,0.00019607,2]
[359748635,1746297043515,-450.0,0.00019607,2]
[359748637,1746297043525,-806.33,0.00019607,2]
[359748639,1746297043535,-630.52,0.00019607,2]
[359748641,1746297043546,-450.0,0.00019607,2]
[359748643,1746297043556,-450.0,0.00019607,2]
[359748645,1746297043566,-450.0,0.00019607,2]
[359748646,1746297043576,-1206.38,0.00019607,2]
[359748648,1746297043587,-450.0,0.00019607,2]
[359748650,1746297043598,-590.23,0.00019607,2]
[359748652,1746297043608,-450.0,0.00019607,2]
[359748654,1746297043619,-450.0,0.00019607,2]
[359748656,1746297043629,-450.0,0.00019607,2]
[359748658,1746297043639,-105.5741576,0.00019607,2]
[359748661,1746297043659,-618.3758424,0.00019607,2]
[359748663,1746297043669,-577.17,0.00019607,2]
[359748665,1746297043679,-450.0,0.00019607,2]
[359748667,1746297043689,-15.1541576,0.00019607,2]
[359748689,1746297044422,-450.0,0.00019605,2]
[359748690,1746297044434,-589.54,0.00019606,2]
[359748691,1746297044444,-434.8458424,0.00019607,2]
[359748692,1746297044455,-450.0,0.00019607,2]
[359748693,1746297044464,-450.0,0.00019607,2]
[359748694,1746297044473,-713.06,0.00019607,2]
[359748695,1746297044483,-519.51,0.00019607,2]
[359748696,1746297044493,-777.93,0.00019607,2]
[359748697,1746297044503,-586.26,0.00019607,2]
[359748698,1746297044512,-450.0,0.00019607,2]
[359748699,1746297044522,-1369.94,0.00019607,2]
[359748700,1746297044532,-450.0,0.00019607,2]
[359748701,1746297044542,-479.20352983,0.00019607,2]
[359748702,1746297044552,-523.20208212,0.00019607,2]
[359748703,1746297044562,-529.54923781,0.00019607,2]
[359748704,1746297044571,-482.04692344,0.00019607,2]
[359748705,1746297044581,-450.0,0.00019607,2]
[359748706,1746297044591,-450.0,0.00019607,2]
[359748707,1746297044600,-473.97622075,0.00019607,2]
[359748708,1746297044610,-587.91,0.00019607,2]
[359748709,1746297044620,-564.89707459,0.00019607,2]
[359748710,1746297044631,-450.0,0.00019607,2]
[359748711,1746297044640,-510.92426429,0.00019607,2]
[359748712,1746297044649,-450.0,0.00019607,2]
[359748713,1746297044659,-450.0,0.00019607,2]
[359748714,1746297044668,-533.95367948,0.00019607,2]
[359748715,1746297044678,-507.69,0.00019607,2]
[359748716,1746297044687,-450.0,0.00019607,2]
[359748717,1746297044698,-450.0,0.00019607,2]
[359748718,1746297044707,-450.0,0.00019607,2]
[359748719,1746297044717,-496.03,0.00019607,2]
[359748720,1746297044727,-450.0,0.00019607,2]
[359748721,1746297044736,-450.0,0.00019607,2]
[359748722,1746297044746,-450.0,0.00019607,2]
[359748723,1746297044755,-307.94111165,0.00019607,2]
[359748724,1746297044766,-450.0,0.00019607,2]
[359748725,1746297044775,-4858.06,0.00019607,2]
[359748726,1746297044785,-972.09,0.00019607,2]
[359748727,1746297044794,-450.0,0.00019607,2]
[359748728,1746297044803,-450.0,0.00019607,2]
[359748729,1746297044813,-450.0,0.00019607,2]
[359748730,1746297044823,-450.0,0.00019607,2]
[359748731,1746297044833,-450.0,0.00019607,2]
[359748732,1746297044842,-490.88189455,0.00019607,2]
[359748733,1746297044852,-546.24213029,0.00019607,2]
[359748734,1746297044861,-450.0,0.00019607,2]
[359748735,1746297044871,-450.0,0.00019607,2]
[359748736,1746297044882,-450.0,0.00019607,2]
[359748737,1746297044891,-515.92,0.00019607,2]
[359748738,1746297044900,-450.0,0.00019607,2]
[359748739,1746297044909,-483.42226741,0.00019607,2]
[359748740,1746297044919,-450.0,0.00019607,2]
[359748741,1746297044928,-450.0,0.00019607,2]
[359748742,1746297044938,-450.0,0.00019607,2]
[359748743,1746297044948,-450.0,0.00019607,2]
[359748744,1746297044958,-450.0,0.00019607,2]
[359748745,1746297044967,-555.46,0.00019607,2]
[359748746,1746297044977,-450.0,0.00019607,2]
[359748747,1746297044986,-450.0,0.00019607,2]
[359748748,1746297044995,-500.0,0.00019607,2]
[359748749,1746297045005,-2277.96,0.00019607,2]
[359748750,1746297045014,-450.0,0.00019607,2]
[359748751,1746297045023,-450.0,0.00019607,2]
[359748752,1746297045033,-450.0,0.00019607,2]
[359748753,1746297045042,-500.0,0.00019607,2]
[359748754,1746297045051,-480.61657555,0.00019607,2]
[359748755,1746297045061,-994.08,0.00019607,2]
[359748756,1746297045070,-450.0,0.00019607,2]
[359748757,1746297045079,-167.17367774,0.00019607,2]
[359748758,1746297045089,-450.0,0.00019607,2]
[359748759,1746297045099,-450.0,0.00019607,2]
[359748760,1746297045108,-561.38599026,0.00019607,2]
[359748761,1746297045117,-519.47554658,0.00019607,2]
[359748762,1746297045127,-185.50934107,0.00019607,2]
[359748763,1746297045136,-450.0,0.00019607,2]
[359748764,1746297045145,-450.0,0.00019607,2]
[359748765,1746297045155,-450.0,0.00019607,2]
[359748766,1746297045164,-511.54468994,0.00019607,2]
[359748767,1746297045173,-450.0,0.00019607,2]
[359748768,1746297045182,-450.0,0.00019607,2]
[359748769,1746297045192,-450.0,0.00019607,2]
[359748770,1746297045201,-450.0,0.00019607,2]
[359748771,1746297045210,-450.0,0.00019607,2]
[359748772,1746297045219,-963.25,0.00019607,2]
[359748773,1746297045229,-474.32117263,0.00019607,2]
[359748774,1746297045238,-450.0,0.00019607,2]
[359748775,1746297045248,-450.0,0.00019607,2]
[359748776,1746297045257,-450.0,0.00019607,2]
[359748777,1746297045267,-450.0,0.00019607,2]
[359748778,1746297045276,-984.07,0.00019607,2]
[359748779,1746297045286,-450.0,0.00019607,2]
[359748780,1746297045295,-450.0,0.00019607,2]
[359748781,1746297045306,-603.65,0.00019607,2]
[359748782,1746297045315,-450.0,0.00019607,2]
[359748783,1746297045324,-450.0,0.00019607,2]
[359748784,1746297045334,-450.0,0.00019607,2]
[359748785,1746297045343,-695.53,0.00019607,2]
[359748786,1746297045352,-450.0,0.00019607,2]
[359748787,1746297045362,-450.0,0.00019607,2]
[359748788,1746297045371,-487.02448323,0.00019607,2]
[359748789,1746297045380,-450.0,0.00019607,2]
[359748790,1746297045390,-450.0,0.00019607,2]
[359748791,1746297045400,-290.0961764,0.00019607,2]
[359748792,1746297045412,-450.0,0.00019607,2]
[359748793,1746297045421,-450.0,0.00019607,2]
[359748794,1746297045431,-450.0,0.00019607,2]
[359748795,1746297045440,-276.74108748,0.00019607,2]
[359748796,1746297045450,-450.0,0.00019607,2]
[359748797,1746297045459,-814.13,0.00019607,2]
[359748798,1746297045469,-667.36,0.00019607,2]
[359748799,1746297045479,-280.71919491,0.00019607,2]
[359748800,1746297045489,-450.0,0.00019607,2]
[359748801,1746297045499,-452.75,0.00019607,2]
[359748802,1746297045508,-450.0,0.00019607,2]
[359748803,1746297045520,-474.22018623,0.00019607,2]
[359748804,1746297045530,-450.0,0.00019607,2]
[359748805,1746297045539,-450.0,0.00019607,2]
[359748806,1746297045548,-412.14685447,0.00019607,2]
[359748807,1746297045557,-450.0,0.00019607,2]
[359748808,1746297045567,-663.38,0.00019607,2]
[359748809,1746297045576,-450.0,0.00019607,2]
[359748810,1746297045585,-450.0,0.00019607,2]
[359748811,1746297045594,-450.0,0.00019607,2]
[359748812,1746297045603,-450.0,0.00019607,2]
[359748813,1746297045613,-479.31271413,0.00019607,2]
[359748814,1746297045623,-450.0,0.00019607,2]
[359748815,1746297045632,-450.0,0.00019607,2]
[359748816,1746297045641,-450.0,0.00019607,2]
[359748817,1746297045651,-504.08102465,0.00019607,2]
[359748818,1746297045660,-450.0,0.00019607,2]
[359748819,1746297045669,-651.04,0.00019607,2]
[359748820,1746297045679,-450.0,0.00019607,2]
[359748821,1746297045688,-450.0,0.00019607,2]
[359748822,1746297045698,-450.0,0.00019607,2]
[359748823,1746297045707,-450.0,0.00019607,2]
[359748824,1746297045717,-467.05250635,0.00019607,2]
[359748825,1746297045726,-450.0,0.00019607,2]
[359748826,1746297045736,-586.58,0.00019607,2]
[359748827,1746297045746,-450.0,0.00019607,2]
[359748828,1746297045755,-450.0,0.00019607,2]
[359748829,1746297045765,-547.37,0.00019607,2]
[359748830,1746297045774,-450.0,0.00019607,2]
[359748831,1746297045783,-450.0,0.00019607,2]
[359748832,1746297045792,-450.0,0.00019607,2]
[359748833,1746297045801,-450.0,0.00019607,2]
[359748835,1746297045810,-450.0,0.00019607,2]
[359748836,1746297045820,-450.0,0.00019607,2]
[359748837,1746297045829,-450.0,0.00019607,2]
[359748838,1746297045838,-450.0,0.00019607,2]
[359748839,1746297045848,-450.0,0.00019607,2]
[359748840,1746297045857,-450.0,0.00019607,2]
[359748841,1746297045865,-760.52,0.00019607,2]
[359748842,1746297045875,-450.0,0.00019607,2]
[359748843,1746297045884,-450.0,0.00019607,2]
[359748844,1746297045893,-450.0,0.00019607,2]
[359748845,1746297045902,-450.0,0.00019607,2]
[359748846,1746297045911,-507.8,0.00019607,2]
[359748847,1746297045920,-495.78440254,0.00019607,2]
[359748848,1746297045929,-560.73,0.00019607,2]
[359748849,1746297045938,-450.0,0.00019607,2]
[359748850,1746297045947,-450.0,0.00019607,2]
[359748851,1746297045957,-450.0,0.00019607,2]
[359748852,1746297045966,-450.0,0.00019607,2]
[359748853,1746297045975,-977.69,0.00019607,2]
[359748854,1746297045984,-460.29768648,0.00019607,2]
[359748855,1746297045993,-450.0,0.00019607,2]
[359748856,1746297046002,-450.0,0.00019607,2]
[359748857,1746297046011,-450.0,0.00019607,2]
[359748858,1746297046021,-462.55021192,0.00019607,2]
[359748859,1746297046030,-300.0,0.00019607,2]
[359748860,1746297046040,-450.0,0.00019607,2]
[359748861,1746297046049,-533.75,0.00019607,2]
[359748862,1746297046058,-622.57,0.00019607,2]
[359748863,1746297046068,-786.2,0.00019607,2]
[359748864,1746297046077,-450.0,0.00019607,2]
[359748865,1746297046087,-450.0,0.00019607,2]
[359748866,1746297046097,-450.0,0.00019607,2]
[359748867,1746297046106,-450.0,0.00019607,2]
[359748868,1746297046115,-450.0,0.00019607,2]
[359748869,1746297046125,-566.40820346,0.00019607,2]
[359748870,1746297046134,-450.0,0.00019607,2]
[359748871,1746297046143,-450.0,0.00019607,2]
[359748872,1746297046153,-450.0,0.00019607,2]
[359748873,1746297046162,-450.0,0.00019607,2]
[359748874,1746297046171,-450.0,0.00019607,2]
[359748875,1746297046181,-450.0,0.00019607,2]
[359748876,1746297046190,-450.0,0.00019607,2]
[359748877,1746297046199,-450.0,0.00019607,2]
[359748878,1746297046208,-450.0,0.00019607,2]
[359748879,1746297046218,-503.21061387,0.00019607,2]
[359748880,1746297046227,-450.0,0.00019607,2]
[359748881,1746297046236,-450.0,0.00019607,2]
[359748882,1746297046246,-543.82,0.00019607,2]
[359748883,1746297046255,-450.0,0.00019607,2]
[359748884,1746297046264,-2234.87,0.00019607,2]
[359748885,1746297046273,-450.0,0.00019607,2]
[359748886,1746297046283,-450.0,0.00019607,2]
[359748887,1746297046292,-450.0,0.00019607,2]
[359748888,1746297046301,-452.66416676,0.00019607,2]
[359748889,1746297046311,-450.0,0.00019607,2]
[359748890,1746297046320,-512.35,0.00019607,2]
[359748891,1746297046330,-450.0,0.00019607,2]
[359748892,1746297046340,-450.0,0.00019607,2]
[359748893,1746297046349,-450.0,0.00019607,2]
[359748894,1746297046359,-1097.8,0.00019607,2]
[359748895,1746297046369,-450.0,0.00019607,2]
[359748896,1746297046379,-450.0,0.00019607,2]
[359748897,1746297046388,-450.0,0.00019607,2]
[359748898,1746297046398,-450.0,0.00019607,2]
[359748899,1746297046410,-450.0,0.00019607,2]
[359748900,1746297046419,-450.0,0.00019607,2]
[359748901,1746297046429,-1162.75,0.00019607,2]
[359748902,1746297046438,-450.0,0.00019607,2]
[359748904,1746297046447,-450.0,0.00019607,2]
[359748906,1746297046457,-450.0,0.00019607,2]
[359748908,1746297046466,-450.0,0.00019607,2]
[359748909,1746297046476,-865.52208201,0.0001961,2]
[359748910,1746297046486,-153.14775644,0.00019611,2]
[359748911,1746297046496,-150.0,0.00019611,2]
[359748912,1746297046505,-500.0,0.00019611,2]
[359748913,1746297046515,-150.0,0.00019611,2]
[359748914,1746297046524,-150.0,0.00019611,2]
[359748915,1746297046533,-155.75221986,0.00019611,2]
[359748916,1746297046543,-500.0,0.00019611,2]
[359748917,1746297046552,-152.6145878,0.00019611,2]
[359748918,1746297046562,-152.14871149,0.00019611,2]
[359748919,1746297046571,-150.0,0.00019611,2]
[359748920,1746297046580,-150.50631763,0.00019611,2]
[359748921,1746297046589,-500.0,0.00019611,2]
[359748922,1746297046599,-460.0,0.00019611,2]
[359748923,1746297046608,-150.0,0.00019611,2]
[359748924,1746297046617,-500.0,0.00019611,2]
[359748925,1746297046626,-150.0,0.00019611,2]
[359748926,1746297046636,-500.0,0.00019611,2]
[359748927,1746297046645,-150.0,0.00019611,2]
[359748928,1746297046655,-150.0,0.00019611,2]
[359748929,1746297046664,-500.0,0.00019611,2]
[359748930,1746297046673,-150.0,0.00019611,2]
[359748931,1746297046683,-150.0,0.00019611,2]
[359748932,1746297046693,-150.0,0.00019611,2]
[359748933,1746297046702,-185.16886368,0.00019637,2]
[359748934,1746297046712,-3833.7395944,0.00019637,2]
[359748935,1746297046722,-173.53860403,0.00019637,2]
[359748936,1746297046731,-95051.89683539,0.00019637,2]
[359748937,1746297046741,-999.0,0.00019671,2]
[359748938,1746297046751,-500.0,0.00019673,2]
[359748939,1746297046761,-501.02155493,0.00019673,2]
[359748940,1746297046771,-400.96451374,0.00019673,2]
[359748941,1746297046780,-500.0,0.00019673,2]
[359748942,1746297046790,-500.0,0.00019673,2]
[359748943,1746297046799,-264.39475146,0.00019673,2]
[359748944,1746297046808,-500.0,0.00019673,2]
[359748945,1746297046819,-500.0,0.00019673,2]
[359748946,1746297046828,-500.0,0.00019673,2]
[359748947,1746297046839,-500.0,0.00019673,2]
[359748948,1746297046849,-500.0,0.00019673,2]
[359748949,1746297046858,-500.0,0.00019673,2]
[359748950,1746297046868,-153.57106754,0.00019673,2]
[359748951,1746297046878,-500.0,0.00019673,2]
[359748952,1746297046887,-1826.25836991,0.00019676,2]
[359748953,1746297046897,-3833.7395944,0.00019681,2]
[359748954,1746297046907,-173.53860403,0.00019681,2]
[359748955,1746297046917,-1048.91,0.0001969,2]
[359748956,1746297046926,-321.62556747,0.00019695,2]
[359748957,1746297046937,-1000.0,0.000197,2]
[359748958,1746297046947,-6293.1,0.000197,2]
[359748959,1746297046957,-319.06743519,0.0001971,2]
[359748960,1746297046967,-158.08935037,0.0001971,2]
[359748961,1746297046976,-772.8988,0.0001971,2]
[359748962,1746297046986,-150.0,0.00019712,2]
[359748963,1746297046995,-150.0,0.00019717,2]
[359748964,1746297047005,-150.0,0.0001972,2]
[359748965,1746297047015,-150.0,0.0001972,2]
[359748966,1746297047024,-150.0,0.00019723,2]
[359748967,1746297047034,-3833.7395944,0.00019725,2]
[359748968,1746297047044,-173.53860403,0.00019725,2]
[359748969,1746297047053,-150.0,0.00019725,2]
[359748970,1746297047062,-150.0,0.00019725,2]
[359748971,1746297047072,-1000.0,0.00019725,2]
[359748972,1746297047081,-798.64413856,0.00019725,2]
[359748973,1746297047091,-321.62556741,0.00019729,2]
[359748974,1746297047101,-150.0,0.0001973,2]
[359748975,1746297047110,-150.0,0.00019741,2]
[359748976,1746297047120,-150.0,0.00019742,2]
[359748977,1746297047130,-150.0,0.00019742,2]
[359748978,1746297047140,-150.0,0.00019744,2]
[359748979,1746297047149,-150.0,0.00019748,2]
[359748980,1746297047158,-150.0,0.00019748,2]
[359748981,1746297047168,-150.0,0.00019749,2]
[359748982,1746297047178,-86224.25544592,0.0001975,2]
[359748983,1746297047188,-150.0,0.00019751,2]
[359748984,1746297047199,-150.0,0.00019755,2]
[359748985,1746297047209,-150.0,0.00019757,2]
[359748986,1746297047219,-319.06743515,0.00019758,2]
[359748987,1746297047228,-150.0,0.00019762,2]
[359748988,1746297047238,-150.0,0.00019762,2]
[359748989,1746297047247,-321.62556741,0.00019763,2]
[359748990,1746297047256,-150.0,0.00019764,2]
[359748991,1746297047265,-150.0,0.00019765,2]
[359748992,1746297047275,-185.16886368,0.00019769,2]
[359748993,1746297047285,-3833.7395944,0.00019769,2]
[359748994,1746297047294,-173.53860403,0.00019769,2]
[359748995,1746297047304,-150.0,0.00019769,2]
[359748996,1746297047314,-150.0,0.00019772,2]
[359748997,1746297047324,-150.0,0.00019777,2]
[359748998,1746297047333,-150.0,0.00019778,2]
[359748999,1746297047343,-150.0,0.00019779,2]
[359749000,1746297047354,-1826.25836991,0.0001978,2]
[359749001,1746297047363,-225.0,0.00019782,2]
[359749002,1746297047373,-150.0,0.00019786,2]
[359749003,1746297047383,-150.0,0.00019788,2]
[359749004,1746297047580,-150.0,0.00019789,2]
[359749005,1746297047592,-150.0,0.00019789,2]
[359749006,1746297047602,-26928.89043406,0.00019793,2]
[359749007,1746297047612,-321.62556741,0.00019798,2]
[359749008,1746297047622,-2448.6476407,0.00019799,2]
[359749009,1746297047631,-1000.0,0.000198,2]
[359749010,1746297047641,-200.0,0.00019802,2]
[359749011,1746297047651,-319.06743515,0.00019805,2]
[359749012,1746297047661,-500.0,0.00019808,2]
[359749013,1746297047671,-500.0,0.00019808,2]
[359749014,1746297047680,-500.0,0.00019809,2]
[359749015,1746297047690,-150.0,0.00019809,2]
[359749016,1746297047700,-74300.28627454,0.0001981,2]
[359749017,1746297047710,-150.0,0.00019812,2]
[359749018,1746297047719,-3833.7395944,0.00019812,2]
[359749019,1746297047729,-173.53860403,0.00019812,2]
[359749020,1746297047738,-150.0,0.00019813,2]
[359749021,1746297047748,-150.0,0.00019813,2]
[359749022,1746297047758,-150.0,0.00019816,2]
[359749023,1746297047767,-150.0,0.00019821,2]
[359749024,1746297047777,-150.0,0.00019822,2]
[359749025,1746297047786,-150.0,0.00019823,2]
[359749026,1746297047795,-321.62556741,0.00019832,2]
[359749027,1746297047805,-150.0,0.00019833,2]
[359749028,1746297047814,-150.0,0.00019836,2]
[359749029,1746297047824,-200.0,0.00019839,2]
[359749030,1746297047833,-2645.36366564,0.00019839,2]
[359749031,1746297047843,-500.0,0.0001984,2]
[359749032,1746297047852,-2000.0,0.0001984,2]
[359749033,1746297047863,-500.0,0.0001984,2]
[359749034,1746297047872,-200.0,0.0001984,2]
[359749035,1746297047881,-150.0,0.0001984,2]
[359749036,1746297047891,-150.0,0.00019844,2]
[359749037,1746297047901,-150.0,0.00019845,2]
[359749038,1746297047910,-155.62,0.00019845,2]
[359749039,1746297047919,-319.06743515,0.00019853,2]
[359749040,1746297047928,-3833.7395944,0.00019856,2]
[359749041,1746297047938,-173.53860403,0.00019856,2]
[359749042,1746297047948,-150.0,0.00019863,2]
[359749043,1746297047957,-150.0,0.00019863,2]
[359749044,1746297047966,-150.0,0.00019864,2]
[359749045,1746297047975,-150.0,0.00019865,2]
[359749046,1746297047985,-150.0,0.00019865,2]
[359749047,1746297047994,-321.62556741,0.00019866,2]
[359749048,1746297048003,-150.0,0.00019867,2]
[359749049,1746297048013,-32944.00007207,0.00019869,2]
[359749050,1746297048022,-493.48566121,0.0001987,2]
[359749051,1746297048032,-500.0,0.00019873,2]
[359749052,1746297048041,-500.0,0.00019873,2]
[359749053,1746297048050,-500.0,0.00019873,2]
[359749054,1746297048060,-500.0,0.00019873,2]
[359749055,1746297048069,-507.79745625,0.00019873,2]
[359749056,1746297048078,-500.0,0.00019873,2]
[359749057,1746297048088,-500.0,0.00019873,2]
[359749058,1746297048097,-500.0,0.00019873,2]
[359749059,1746297048107,-500.0,0.00019873,2]
[359749060,1746297048117,-209.60510291,0.00019873,2]
[359749061,1746297048126,-500.0,0.00019873,2]
[359749062,1746297048136,-150.0,0.00019875,2]
[359749063,1746297048145,-150.0,0.00019876,2]
[359749064,1746297048154,-150.0,0.00019879,2]
[359749065,1746297048163,-450.0,0.00019879,2]
[359749066,1746297048173,-450.0,0.00019879,2]
[359749067,1746297048182,-494.92,0.00019879,2]
[359749068,1746297048191,-450.0,0.00019879,2]
[359749069,1746297048200,-450.0,0.00019879,2]
[359749070,1746297048209,-450.0,0.00019879,2]
[359749071,1746297048218,-450.0,0.00019879,2]
[359749072,1746297048228,-450.0,0.00019879,2]
[359749073,1746297048237,-566.16,0.00019879,2]
[359749074,1746297048247,-450.0,0.00019879,2]
[359749075,1746297048256,-450.0,0.00019879,2]
[359749076,1746297048265,-4098.58,0.00019879,2]
[359749077,1746297048274,-450.0,0.00019879,2]
[359749078,1746297048283,-478.28,0.00019879,2]
[359749079,1746297048292,-855.47,0.00019879,2]
[359749080,1746297048302,-450.0,0.00019879,2]
[359749081,1746297048311,-450.0,0.00019879,2]
[359749082,1746297048320,-468.70797676,0.00019879,2]
[359749083,1746297048329,-450.0,0.00019879,2]
[359749084,1746297048339,-1967.62,0.00019879,2]
[359749085,1746297048348,-450.0,0.00019879,2]
[359749086,1746297048357,-450.0,0.00019879,2]
[359749087,1746297048367,-711.23,0.00019879,2]
[359749088,1746297048377,-450.0,0.00019879,2]
[359749089,1746297048386,-450.0,0.00019879,2]
[359749090,1746297048395,-1122.830005,0.00019879,2]
[359749091,1746297048406,-450.0,0.00019879,2]
[359749092,1746297048415,-450.0,0.00019879,2]
[359749093,1746297048425,-4921.7,0.00019879,2]
[359749094,1746297048434,-450.0,0.00019879,2]
[359749095,1746297048443,-450.0,0.00019879,2]
[359749096,1746297048453,-561.320092,0.00019879,2]
[359749097,1746297048463,-450.0,0.00019879,2]
[359749098,1746297048472,-450.0,0.00019879,2]
[359749099,1746297048483,-450.0,0.0001988,2]
[359749100,1746297048493,-450.0,0.0001988,2]
[359749101,1746297048502,-450.0,0.0001988,2]
[359749102,1746297048512,-450.0,0.0001988,2]
[359749103,1746297048522,-450.0,0.0001988,2]
[359749104,1746297048531,-450.0,0.0001988,2]
[359749105,1746297048541,-450.0,0.0001988,2]
[359749106,1746297048550,-450.0,0.0001988,2]
[359749107,1746297048560,-450.0,0.0001988,2]
[359749108,1746297048571,-450.0,0.0001988,2]